{"text_format":"2","workbook":"xlsx","n_sheets":1,"sheets":["Tabelle2"],"not_rendered":{"charts":0,"images":0,"macros":0,"external_links":0,"defined_names":0,"comments":0,"pivot_tables":0},"unopened":[],"bounds":{"document_bytes":16777216,"sheet_cells":100000,"run_cost":"one","rows_first":2000,"rows_last":500,"rows_between":2000,"halvings":0,"cell_chars":16384,"cell_head_chars":4096},"cells_cut":0,"cells_raw":0,"read":"whole","date_system":"1900"}

{"sheet":"Tabelle2","index":0,"n_rows":67,"n_cols":9,"rows_kept":67,"cut":false,"hidden":false,"merged":[[32,0,33,2],[32,3,33,3],[35,7,37,7],[32,4,33,4],[32,6,33,6],[32,5,33,5],[34,0,34,2],[55,0,55,2],[35,0,35,2],[36,0,36,2],[37,0,37,2],[39,0,39,2],[42,0,42,3],[38,0,38,2]]}
[]
["in €",null,"Durchgeführte TNM:",null,0,null,null,null,"Position"]
[1,2,3,4,5,null,6,7,8]
["Ausgaben-gruppe",null,"Position","Wert pro TNM","Maximalwerte der zuwendungsfähig. Ausg.",null,"tatsächlich gezahlte Ausgaben","landeszuwendungsfähige Ausgaben laut ZWB"," im Bundes-formular"]
["A "]
["Personal-Ausg.","1a","Pers. bundeszuw.fähig ",null,{"$f":"E8*0.875","v":0},null,{"$f":"G8*0.875","v":0},0,1]
[null,"1b","Pers. nicht bundeszuw.fähig",null,{"$f":"E8-E6","v":0},null,{"$f":"G8-G6","v":0},0,4]
[null,1,"Personalausg. gesamt",130,{"$f":"D8*E2","v":0},null,0,{"$f":"SUM(H6:H7)","v":0}]
[]
["Seminar-Ausg.",2,"Tagessätze Fw U+V",66.25,{"$f":"D10*E2","v":0},null,0]
[null,3,"Referentenhonorare",31.25,{"$f":"D11*E2","v":0},null,0]
[null,4,"Fahrtkosten Fw",12.5,{"$f":"D12*E2","v":0},null,0]
[null,5,"Sachausg. für Seminare",12,{"$f":"D13*E2","v":0},null,0]
[null,null,"Zwischensumme 2 Bund",null,null,null,{"$f":"SUM(G10:G13)","v":0},0,2]
[null,6,"Fahrtkosten päd. FK",8,{"$f":"D15*E2","v":0},null,0]
[null,7,"weitere zuw.fähig. Sachausg.",0,{"$f":"D16*E2","v":0},null,0]
[null,null,"Zwischensumme 3 Bund",null,null,null,{"$f":"SUM(G15:G16)","v":0},0,3]
[null,null,"Gruppensumme A",{"$f":"SUM(D6:D15)","v":260},{"$f":"D18*E2","v":0},null,{"$f":"SUM(G8:G16)-G14","v":0},{"$f":"SUM(H8:H17)","v":0}]
["B"]
["TN-Ausgaben",8,"TG",150,{"$f":"D20*E2","v":0},null,0]
[null,9,"U + V",150,{"$f":"D21*E2","v":0},null,0]
[null,10,"SV",125,{"$f":"D22*E2","v":0},null,0]
[null,null,"Gruppensumme B",{"$f":"SUM(D20:D22)","v":425},{"$f":"SUM(E20:E22)","v":0},null,{"$f":"SUM(G20:G22)","v":0},0,4]
["C"]
["Sachausgaben",11,"trägerbezogene Sachausg.",20,{"$f":"D25*E2","v":0},null,0]
[null,12,"trägerinterne Vw-Ausgaben",30,{"$f":"D26*E2","v":0},null,0]
[null,13,"Öffentlichkeitsarbeit",2,{"$f":"D27*E2","v":0},null,0]
[null,null,"Gruppensumme C",{"$f":"SUM(D25:D27)","v":52},{"$f":"SUM(E25:E27)-G16","v":0},null,{"$f":"SUM(G25:G27)-G16","v":0},0,4]
[]
["Gesamtsumme",null,"Summen",{"$f":"D23+D18+D28","v":737},{"$f":"E23+E18+E28","v":0},null,{"$f":"G23+G18+G28","v":0},{"$f":"H23+H18+H28","v":0},"7,6,5"]
[]
["Die Gesamtsumme der tatsächlich gezahlten Ausgaben kann von den als landeszuwendungsfähig anerkennbaren Ausgaben nach VN-Prüfung abweichen."]
["Zuwendungen je TNM in €",null,null,"Beispiel","bewilligter Betrag lt. ZWB",null,"Summe für die abgerechneten TNM"]
[]
["Landesförderung"]
["Ausgabengruppe A",null,null,234,0,null,{"$f":"E2*E36","v":0},"}Differenzen zur Bewilligung sind durch Rundungen möglich "]
["Ausgabengruppe B",null,null,382.5,0,null,{"$f":"E2*E37","v":0}]
["Ausgabengruppe C",null,null,46.8,0,null,{"$f":"E2*E38","v":0}]
[]
["Bundesförderung",null,null,200,0,null,{"$f":"E2*E40","v":0}]
[]
[]
["Ausgaben u. Finanzierung in €/ Gliederung Bundesformular",null,null,null,"12 Monate",null,"Sept.-Dez.","Jan.-Aug."]
["Ausgaben",1,"Personalausgaben",null,{"$f":"G6","v":0}]
[null,2,"Seminarausgaben",null,{"$f":"G14","v":0}]
[null,3,"Sonstige A. f. päd.Begl.",null,{"$f":"G17","v":0}]
[null,4,"nicht zuw.fähige Ausg.",null,{"$f":"G7+G23+G28","v":0}]
[null,null,"Gesamtausgaben",null,{"$f":"SUM(E44:E47)","v":0}]
[]
["Einnahmen","5","Eigen- u. Drittmittel insg.",null,{"$f":"E48-E51-E52","v":0}]
[null,"6.1","Landesmittel nach TN-Zahl",null,{"$f":"SUM(G36:G38)","v":0},"*",{"$f":"E51/3","v":0},{"$f":"G51*2","v":0}]
[null,"7.1","Bundesmittel nach TN-Zahl",null,{"$f":"G40","v":0},"*",{"$f":"E52/3","v":0},{"$f":"G52*2","v":0}]
[null,null,"Gesamteinnahmen",null,{"$f":"SUM(E50:E52)","v":0}]
["* sofern die Ausgaben der einzelnen Gruppen nicht unter den bewilligten Festbeträgen liegen; andernfalls erfolgt eine Kürzung der Zuwendung"]
[]
["Erklärung des Zuwendungsempfängers"]
["Es wird  bestätigt, dass die Ausgaben notwendig waren, wirtschaftlich und sparsam verfahren worden ist und die Ausgaben mit den Büchern und Belegen  "]
["übereinstimmen. "]
["Wir erklären, dass die Zuwendung bestimmungsgemäß verwendet wurde und dass die Bestimmungen des JFDG, der RL-FwD und der VwV-FwD im "]
["Bewilligungszeitraum eingehalten wurden."]
["Wir bestätigen, dass für alle in der Teilnehmerliste aufgeführten Teilenhmer/-innen Sozialversicherungsbeiträge ordnungsgemäß abgeführt wurden."]
["Wir erklären, dass die Freiwilligen, für die die Zuwendung verwendet wurde, keine Freiwilligen nach dem Bundesfreiwilligendienstgesetz sind."]
[]
[]
[]
[]
["Datum",null,"Rechtsverbindliche Unterschrift(en)"]